Workbook

Sheet Banyo Tadilat Maliyetleri
B1: Banyo Tadilatı Maliyetleri Çalışma Sayfası
B2: NOT: Tablodaki fark sütunları, gerçek tutarın tahmini tutarı geçip geçmediğini gösterir. Kırmızı sayılar aşan sayıları (negatif), siyah sayılar ise altında kalan sayıları (pozitif) gösterir.
E3: Dökümlü Maliyet (TL) | H3: Toplam Maliyet (TL)
B4: Alan | C4: Öğeler | D4: Miktar | E4: Tahmini | F4: Gerçek | G4: Fark | H4: Tahmini | I4: Gerçek | J4: Fark
B5: Banyo/Duş | C5: Küvet, dökme demir 1,52 m, standart | D5: 1 | E5: 250.00 ₺ | F5: =RANDBETWEEN(E5+2,E5+20) -> 252.00 ₺ | G5: =IFERROR(Maliyetler[[#This Row],[Tahmini]]-Maliyetler[[#This Row],[Gerçek]], "") -> -2.00 ₺ | H5: =IFERROR(Maliyetler[[#This Row],[Miktar]]*Maliyetler[[#This Row],[Tahmini]], "") -> 250.00 ₺ | I5: =IFERROR(Maliyetler[[#This Row],[Miktar]]*Maliyetler[[#This Row],[Gerçek]], "") -> 252.00 ₺ | J5: =IFERROR(Maliyetler[[#This Row],[Tahmini ]]-Maliyetler[[#This Row],[Gerçek ]], "") -> -2.00 ₺
B6: Banyo/Duş | C6: Duş kapıları, menteşeli, standart | D6: 1 | E6: 200.00 ₺ | F6: 214.00 ₺ | G6: =IFERROR(Maliyetler[[#This Row],[Tahmini]]-Maliyetler[[#This Row],[Gerçek]], "") -> -14.00 ₺ | H6: =IFERROR(Maliyetler[[#This Row],[Miktar]]*Maliyetler[[#This Row],[Tahmini]], "") -> 200.00 ₺ | I6: =IFERROR(Maliyetler[[#This Row],[Miktar]]*Maliyetler[[#This Row],[Gerçek]], "") -> 214.00 ₺ | J6: =IFERROR(Maliyetler[[#This Row],[Tahmini ]]-Maliyetler[[#This Row],[Gerçek ]], "") -> -14.00 ₺
B7: Banyo/Duş | C7: Duş başlığı, standart | D7: 1 | E7: 50.00 ₺ | F7: 62.00 ₺ | G7: =IFERROR(Maliyetler[[#This Row],[Tahmini]]-Maliyetler[[#This Row],[Gerçek]], "") -> -12.00 ₺ | H7: =IFERROR(Maliyetler[[#This Row],[Miktar]]*Maliyetler[[#This Row],[Tahmini]], "") -> 50.00 ₺ | I7: =IFERROR(Maliyetler[[#This Row],[Miktar]]*Maliyetler[[#This Row],[Gerçek]], "") -> 62.00 ₺ | J7: =IFERROR(Maliyetler[[#This Row],[Tahmini ]]-Maliyetler[[#This Row],[Gerçek ]], "") -> -12.00 ₺
B8: Banyo/Duş | C8: Küvet duvarı çevresi, standart | D8: 1 | E8: 200.00 ₺ | F8: 214.00 ₺ | G8: =IFERROR(Maliyetler[[#This Row],[Tahmini]]-Maliyetler[[#This Row],[Gerçek]], "") -> -14.00 ₺ | H8: =IFERROR(Maliyetler[[#This Row],[Miktar]]*Maliyetler[[#This Row],[Tahmini]], "") -> 200.00 ₺ | I8: =IFERROR(Maliyetler[[#This Row],[Miktar]]*Maliyetler[[#This Row],[Gerçek]], "") -> 214.00 ₺ | J8: =IFERROR(Maliyetler[[#This Row],[Tahmini ]]-Maliyetler[[#This Row],[Gerçek ]], "") -> -14.00 ₺
B9: Dolaplar | C9: İlaç dolabı 61 cm, deluxe | D9: 1 | E9: 200.00 ₺ | F9: 219.00 ₺ | G9: =IFERROR(Maliyetler[[#This Row],[Tahmini]]-Maliyetler[[#This Row],[Gerçek]], "") -> -19.00 ₺ | H9: =IFERROR(Maliyetler[[#This Row],[Miktar]]*Maliyetler[[#This Row],[Tahmini]], "") -> 200.00 ₺ | I9: =IFERROR(Maliyetler[[#This Row],[Miktar]]*Maliyetler[[#This Row],[Gerçek]], "") -> 219.00 ₺ | J9: =IFERROR(Maliyetler[[#This Row],[Tahmini ]]-Maliyetler[[#This Row],[Gerçek ]], "") -> -19.00 ₺
B10: Dolaplar | C10: Modüler makyaj masası 76 cm, standart | D10: 2 | E10: 100.00 ₺ | F10: 113.00 ₺ | G10: =IFERROR(Maliyetler[[#This Row],[Tahmini]]-Maliyetler[[#This Row],[Gerçek]], "") -> -13.00 ₺ | H10: =IFERROR(Maliyetler[[#This Row],[Miktar]]*Maliyetler[[#This Row],[Tahmini]], "") -> 200.00 ₺ | I10: =IFERROR(Maliyetler[[#This Row],[Miktar]]*Maliyetler[[#This Row],[Gerçek]], "") -> 226.00 ₺ | J10: =IFERROR(Maliyetler[[#This Row],[Tahmini ]]-Maliyetler[[#This Row],[Gerçek ]], "") -> -26.00 ₺
B11: Tezgahlar | C11: Fayans, deluxe (miktar olarak lineer metre) | D11: 5 | E11: 22.50 ₺ | F11: 42.00 ₺ | G11: =IFERROR(Maliyetler[[#This Row],[Tahmini]]-Maliyetler[[#This Row],[Gerçek]], "") -> -19.50 ₺ | H11: =IFERROR(Maliyetler[[#This Row],[Miktar]]*Maliyetler[[#This Row],[Tahmini]], "") -> 112.50 ₺ | I11: =IFERROR(Maliyetler[[#This Row],[Miktar]]*Maliyetler[[#This Row],[Gerçek]], "") -> 210.00 ₺ | J11: =IFERROR(Maliyetler[[#This Row],[Tahmini ]]-Maliyetler[[#This Row],[Gerçek ]], "") -> -97.50 ₺
B12: Musluklar | C12: Musluk, küvet, standart | D12: 1 | E12: 90.00 ₺ | F12: 92.00 ₺ | G12: =IFERROR(Maliyetler[[#This Row],[Tahmini]]-Maliyetler[[#This Row],[Gerçek]], "") -> -2.00 ₺ | H12: =IFERROR(Maliyetler[[#This Row],[Miktar]]*Maliyetler[[#This Row],[Tahmini]], "") -> 90.00 ₺ | I12: =IFERROR(Maliyetler[[#This Row],[Miktar]]*Maliyetler[[#This Row],[Gerçek]], "") -> 92.00 ₺ | J12: =IFERROR(Maliyetler[[#This Row],[Tahmini ]]-Maliyetler[[#This Row],[Gerçek ]], "") -> -2.00 ₺
B13: Musluklar | C13: Musluk, duş, tek tutamaçlı, standart | D13: 1 | E13: 115.00 ₺ | F13: 118.00 ₺ | G13: =IFERROR(Maliyetler[[#This Row],[Tahmini]]-Maliyetler[[#This Row],[Gerçek]], "") -> -3.00 ₺ | H13: =IFERROR(Maliyetler[[#This Row],[Miktar]]*Maliyetler[[#This Row],[Tahmini]], "") -> 115.00 ₺ | I13: =IFERROR(Maliyetler[[#This Row],[Miktar]]*Maliyetler[[#This Row],[Gerçek]], "") -> 118.00 ₺ | J13: =IFERROR(Maliyetler[[#This Row],[Tahmini ]]-Maliyetler[[#This Row],[Gerçek ]], "") -> -3.00 ₺
B14: Musluklar | C14: Lavabo musluğu, standart | D14: 1 | E14: 95.00 ₺ | F14: 101.00 ₺ | G14: =IFERROR(Maliyetler[[#This Row],[Tahmini]]-Maliyetler[[#This Row],[Gerçek]], "") -> -6.00 ₺ | H14: =IFERROR(Maliyetler[[#This Row],[Miktar]]*Maliyetler[[#This Row],[Tahmini]], "") -> 95.00 ₺ | I14: =IFERROR(Maliyetler[[#This Row],[Miktar]]*Maliyetler[[#This Row],[Gerçek]], "") -> 101.00 ₺ | J14: =IFERROR(Maliyetler[[#This Row],[Tahmini ]]-Maliyetler[[#This Row],[Gerçek ]], "") -> -6.00 ₺
B15: Döşeme | C15: Fayans, standart (miktar olarak metre kare) | D15: 35 | E15: 12.00 ₺ | F15: 27.00 ₺ | G15: =IFERROR(Maliyetler[[#This Row],[Tahmini]]-Maliyetler[[#This Row],[Gerçek]], "") -> -15.00 ₺ | H15: =IFERROR(Maliyetler[[#This Row],[Miktar]]*Maliyetler[[#This Row],[Tahmini]], "") -> 420.00 ₺ | I15: =IFERROR(Maliyetler[[#This Row],[Miktar]]*Maliyetler[[#This Row],[Gerçek]], "") -> 945.00 ₺ | J15: =IFERROR(Maliyetler[[#This Row],[Tahmini ]]-Maliyetler[[#This Row],[Gerçek ]], "") -> -525.00 ₺
B16: Donanım | C16: Havlu askısı, standart | D16: 2 | E16: 15.00 ₺ | F16: 22.00 ₺ | G16: =IFERROR(Maliyetler[[#This Row],[Tahmini]]-Maliyetler[[#This Row],[Gerçek]], "") -> -7.00 ₺ | H16: =IFERROR(Maliyetler[[#This Row],[Miktar]]*Maliyetler[[#This Row],[Tahmini]], "") -> 30.00 ₺ | I16: =IFERROR(Maliyetler[[#This Row],[Miktar]]*Maliyetler[[#This Row],[Gerçek]], "") -> 44.00 ₺ | J16: =IFERROR(Maliyetler[[#This Row],[Tahmini ]]-Maliyetler[[#This Row],[Gerçek ]], "") -> -14.00 ₺
B17: Donanım | C17: Tuvalet kağıtlığı | D17: 1 | E17: 10.00 ₺ | F17: 29.00 ₺ | G17: =IFERROR(Maliyetler[[#This Row],[Tahmini]]-Maliyetler[[#This Row],[Gerçek]], "") -> -19.00 ₺ | H17: =IFERROR(Maliyetler[[#This Row],[Miktar]]*Maliyetler[[#This Row],[Tahmini]], "") -> 10.00 ₺ | I17: =IFERROR(Maliyetler[[#This Row],[Miktar]]*Maliyetler[[#This Row],[Gerçek]], "") -> 29.00 ₺ | J17: =IFERROR(Maliyetler[[#This Row],[Tahmini ]]-Maliyetler[[#This Row],[Gerçek ]], "") -> -19.00 ₺
B18: Aydınlatma | C18: Gömme ışık, standart | D18: 4 | E18: 25.00 ₺ | F18: 36.00 ₺ | G18: =IFERROR(Maliyetler[[#This Row],[Tahmini]]-Maliyetler[[#This Row],[Gerçek]], "") -> -11.00 ₺ | H18: =IFERROR(Maliyetler[[#This Row],[Miktar]]*Maliyetler[[#This Row],[Tahmini]], "") -> 100.00 ₺ | I18: =IFERROR(Maliyetler[[#This Row],[Miktar]]*Maliyetler[[#This Row],[Gerçek]], "") -> 144.00 ₺ | J18: =IFERROR(Maliyetler[[#This Row],[Tahmini ]]-Maliyetler[[#This Row],[Gerçek ]], "") -> -44.00 ₺
B19: Lavabolar | C19: Lavabo, standart | D19: 2 | E19: 60.00 ₺ | F19: 66.00 ₺ | G19: =IFERROR(Maliyetler[[#This Row],[Tahmini]]-Maliyetler[[#This Row],[Gerçek]], "") -> -6.00 ₺ | H19: =IFERROR(Maliyetler[[#This Row],[Miktar]]*Maliyetler[[#This Row],[Tahmini]], "") -> 120.00 ₺ | I19: =IFERROR(Maliyetler[[#This Row],[Miktar]]*Maliyetler[[#This Row],[Gerçek]], "") -> 132.00 ₺ | J19: =IFERROR(Maliyetler[[#This Row],[Tahmini ]]-Maliyetler[[#This Row],[Gerçek ]], "") -> -12.00 ₺
B20: Diğer | D20: 1 | E20: 20.00 ₺ | F20: 25.00 ₺ | G20: =IFERROR(Maliyetler[[#This Row],[Tahmini]]-Maliyetler[[#This Row],[Gerçek]], "") -> -5.00 ₺ | H20: =IFERROR(Maliyetler[[#This Row],[Miktar]]*Maliyetler[[#This Row],[Tahmini]], "") -> 20.00 ₺ | I20: =IFERROR(Maliyetler[[#This Row],[Miktar]]*Maliyetler[[#This Row],[Gerçek]], "") -> 25.00 ₺ | J20: =IFERROR(Maliyetler[[#This Row],[Tahmini ]]-Maliyetler[[#This Row],[Gerçek ]], "") -> -5.00 ₺
B21: Ara toplam | E21: =SUBTOTAL(109,Maliyetler[Tahmini]) -> 1,464.50 ₺ | F21: =SUBTOTAL(109,Maliyetler[Gerçek]) -> 1,632.00 ₺ | G21: =SUBTOTAL(109,Maliyetler[Fark]) -> -167.50 ₺ | H21: =SUBTOTAL(109,Maliyetler[[Tahmini ]]) -> 2,212.50 ₺ | I21: =SUBTOTAL(109,Maliyetler[[Gerçek ]]) -> 3,027.00 ₺ | J21: =SUBTOTAL(109,Maliyetler[[Fark ]]) -> -814.50 ₺
B22: Beklenmeyen Maliyetler (tahmini tutarın %30’unu ekle) | E22: =IFERROR(Maliyetler[[#Totals],[Tahmini]]*0.3, "") -> 439.35 ₺ | H22: =IFERROR(Maliyetler[[#Totals],[Tahmini ]]*0.3, "") -> 663.75 ₺
B23: Toplam maliyetler | E23: =IFERROR(SUM(E21:E21), "") -> 1,464.50 ₺ | H23: =IFERROR(SUM(Maliyetler[[#Totals],[Tahmini ]],Fazlalık), "") -> 2,876.25 ₺
